Cogmind - Beta 11.1 @@@ ROGUE MODE // 2022.12.10 @ 10:31:39 Player: Communism Result: Destroyed by Y-45 Defender with Heavy Assault Rifle Performance ------------- Evolutions (1) 500 Regions Visited (2) 400 Robots Destroyed (31) 155 Value Destroyed (833) 833 Prototype IDs (1) 20 Alien Tech Used (0) 0 Bonus (16) 16 TOTAL SCORE: 1924 Bonus ------- High Alert Combat Kills 16 Cogmind --------- Core Integrity 0/400 Matter 72/300 Energy 100/100 System Corruption 0% Temperature Cool (0) Movement Core (350) Ox6 Location -9/Materials Parts ------- > --- POWER (1) -------- (None) > --- PROPULSION (4) --- (None) > --- UTILITY (2) ------ Large Storage Unit > --- WEAPON (2) ------- (None) > --- INVENTORY (15) --- Ion Engine Aluminum Leg Aluminum Leg Huge Storage Unit Large Battery (200) Targeting Computer Particle Cannon Grenade Launcher Grenade Launcher Grenade Launcher Grenade Launcher Grenade Launcher Rocket Launcher Rocket Launcher Rocket Launcher Peak State ------------ > --- POWER ------------ Heavy Ion Engine > --- PROPULSION ------- Improved Hover Unit Improved Hover Unit Improved Hover Unit Improved Hover Unit > --- UTILITY ---------- Large Storage Unit Propulsion Shielding > --- WEAPON ----------- Rocket Launcher Rocket Launcher > --- INVENTORY -------- Ion Engine Aluminum Leg Aluminum Leg Huge Storage Unit Large Battery Targeting Computer Particle Cannon Grenade Launcher Grenade Launcher Grenade Launcher Grenade Launcher Grenade Launcher Grenade Launcher Rocket Launcher Rocket Launcher [Rating: 18] Favorites ----------- Power Ion Engine Engine Ion Engine Propulsion Aluminum Leg Leg Aluminum Leg Hover Unit Improved Hover Unit Utility Large Storage Unit Device Heat Sink Storage Large Storage Unit Protection Propulsion Shielding Weapon Rocket Launcher Energy Gun Medium Laser Ballistic Gun Assault Rifle Launcher Rocket Launcher Build | -11 -10 -9 ------- Run | Scr Mat Mat Slots Evolved 2 | . . 2 Power . | . . . Propulsion 2 | . . 2 Utility . | . . . Weapon . | . . . Parts Attached 26 | 5 15 6 Power 4 | 1 2 1 Engine 4 | 1 2 1 Core . | . . . Reactor . | . . . Propulsion 11 | 2 5 4 Treads . | . . . Leg 7 | 2 5 . Wheel . | . . . Hover 4 | . . 4 Flight . | . . . Utility 4 | . 4 . Device 1 | . 1 . Storage 2 | . 2 . Processor . | . . . Hackware . | . . . Protection 1 | . 1 . Artifact . | . . . Weapon 7 | 2 4 1 Energy Gun 1 | 1 . . Energy Cannon . | . . . Ballistic Gun 2 | 1 1 . Ballistic Cannon . | . . . Launcher 4 | . 3 1 Special Weapon . | . . . Impact Weapon . | . . . Slashing Weapon . | . . . Piercing Weapon . | . . . Special Melee Weapon . | . . . Unidentified Prototypes . | . . . Parts Lost 11 | . 3 8 Power 2 | . 1 1 Propulsion 5 | . 1 4 Utility 1 | . . 1 Weapon 3 | . 1 2 Highest Loss Streak 8 | . 2 8 To Critical Strikes . | . . . Average Slot Usage (%) 88 | . 89 86 Engine 10 | . 10 10 Leg 22 | . 27 . Hover 7 | . . 36 Device 6 | . 7 . Storage 9 | . 8 11 Protection 5 | . 5 9 Energy Gun 2 | . 3 . Ballistic Gun 8 | . 10 . Launcher 15 | . 14 18 Naked Turns . | . . . Heaviest Build 37 | 6 34 37 Greatest Support 28 | 20 20 28 Greatest Overweight (x) 9 | . 1 9 Average Overweight (x) . | . . 1 Largest Inventory Capacity 25 | 5 25 15 Average Capacity 11 | 5 11 15 Most Carried 15 | 2 15 15 Average Carried 7 | . 6 14 Final Capacity 15 | 5 15 15 Final Carried 15 | 1 15 15 Class Distribution -------------------- 100% | Mutant Dominant Class ---------------- Mutant | -10/Materials Mutant | -9/Materials Resources | -11 -10 -9 ----------- Run | Scr Mat Mat Matter Collected 503 | 251 184 68 Remotely . | . . . Salvage Created 752 | 36 530 186 Parts 54 | 3 37 14 Haulers Intercepted 1 | . 1 . Recyclers Shooed . | . . . Parts Field Recycled . | . . . Retrieved Matter . | . . . Parts Self-Destructed . | . . . Prevented . | . . . Kills | -11 -10 -9 ------- Run | Scr Mat Mat Combat Hostiles Destroyed 21 | 1 15 5 Guns 8 | 1 7 . AOE 13 | . 8 5 Classes Destroyed 8 | 1 5 2 Worker 3 | . 1 2 Hauler 1 | . 1 . Recycler 1 | . . 1 Operator 1 | . 1 . Watcher 4 | . 3 1 Swarmer 3 | . 3 . Grunt 17 | 1 12 4 Sentry 1 | . . 1 Best Kill Streak 4 | 1 4 3 Combat Bots Only 3 | 1 3 3 Max Kills in Single Turn 3 | 1 3 3 Gunslinging . | . . . Exploded 3 | . 2 3 Melee . | . . . Uniques/NPCs Destroyed . | . . . Combat | -11 -10 -9 -------- Run | Scr Mat Mat Damage Taken 1631 | 21 648 962 Core 586 | 11 175 400 Absorbed by Shields . | . . . Redirected to Shielding 51 | . . 51 Core Remaining (%) 60 | 95 25 . Volleys Fired 47 | 1 39 7 Largest 2 | 2 2 2 Hottest 70 | 70 70 66 Shots Fired 91 | 2 76 13 Gun 66 | 2 64 . Cannon . | . . . Launcher 25 | . 12 13 Special . | . . . Kinetic 37 | 1 36 . Thermal 29 | 1 28 . Explosive 25 | . 12 13 Electromagnetic . | . . . Robot Hit Streak 24 | 2 24 5 Robot Miss Streak 3 | . 3 3 Penetration Max . | . . . Secondary Targets 1 | . 1 . Max Gunslinging Chain 1 | . 1 . Shots Hit Robots 62 | 2 54 6 Core Hits 48 | 2 34 12 Critical Kills . | . . . Critical Parts Destroyed . | . . . Critical Strikes 1 | . 1 . Burn 1 | . 1 . Melee Attacks . | . . . Impact . | . . . Slashing . | . . . Piercing . | . . . Sneak Attacks . | . . . Combat Hostiles . | . . . Follow-up Attacks . | . . . Damage Inflicted 1814 | 23 1100 691 Guns 528 | 23 505 . Cannons . | . . . Explosions 1280 | . 595 685 Melee . | . . . Ramming 6 | . . 6 Kinetic 223 | 10 213 . Thermal 305 | 13 292 . Explosive 1280 | . 595 685 Electromagnetic . | . . . Impact . | . . . Slashing . | . . . Piercing . | . . . Highest Corruption . | . . . Average Corruption . | . . . Corruption Purged . | . . . Corruption Blocked . | . . . Overload Shots . | . . . Overflow Damage 47 | . . 47 Projectiles . | . . . Explosions 47 | . . 47 Melee . | . . . Knockbacks . | . . . Impact . | . . . Kinetic . | . . . Secondary . | . . . Self-Inflicted Damage 43 | . 40 3 Shots 1 | . 1 . Rammed 2 | . . 2 Targets Rammed 2 | . . 2 Kicked . | . . . Crushed . | . . . Highest Temperature 89 | 30 89 27 Average Temperature 22 | 18 29 10 Received Heat Transfer 624 | 12 327 285 Siege Activations . | . . . Robots Corrupted . | . . . Combat Hostiles . | . . . Parts Fried . | . . . Impact Corruptions . | . . . Robots Melted . | . . . Combat Hostiles . | . . . Parts Melted 4 | . 4 . Heat Transferred 962 | 37 925 . Parts Sabotaged . | . . . Parts Stolen . | . . . Parts Stripped . | . . . Power Chain Reactions . | . . . Missiles Intercepted . | . . . Alert | -11 -10 -9 ------- Run | Scr Mat Mat Peak Influence 654 | 20 452 654 Initial 117 | . 13 117 Average 277 | 2 251 453 Maximum Alert Level 2 | . 2 2 Low Security (%) 32 | 100 33 11 Level 1 52 | . 60 33 Level 2 15 | . 5 55 Level 3 . | . . . Level 4 . | . . . Level 5 . | . . . High Security . | . . . Max Security . | . . . Squads Dispatched 5 | . 3 2 Investigation 2 | . 1 1 Extermination . | . . . Reinforcement 3 | . 2 1 Assault . | . . . Garrison . | . . . Intercept . | . . . Searches Triggered . | . . . Construction Impeded . | . . . Haulers Reinforced . | . . . Active Scanning Responses . | . . . Cargo Convoy Interrupts . | . . . Stealth | -11 -10 -9 --------- Run | Scr Mat Mat Distress Signals 3 | . 2 1 Communications Jammed . | . . . Distress Signals . | . . . Times Spotted 38 | 1 22 15 Peak Tracking Total 5 | 1 5 5 Tactical Retreats 1 | . 1 . Traps | -11 -10 -9 ------- Run | Scr Mat Mat Traps Triggered 1 | . 1 . Indirectly . | . . . Trap Hack Attempts . | . . . Triggered . | . . . Disarmed . | . . . Reprogrammed . | . . . Reused . | . . . Traps Extracted . | . . . Installed . | . . . Triggered . | . . . Machines | -11 -10 -9 ---------- Run | Scr Mat Mat Machines Disabled 5 | . 2 3 Max in Single Turn 2 | . 1 2 Machines Sabotaged . | . . . Garrisons Compromised . | . . . Overloaded Fab Kills . | . . . Hacking | -11 -10 -9 --------- Run | Scr Mat Mat Machines Accessed 5 | . 3 2 Terminals 2 | . 1 1 Fabricators . | . . . Repair Stations . | . . . Recycling Units 2 | . 2 . Scanalyzers 1 | . . 1 Garrison Access . | . . . Total Hacks 12 | . 4 8 Successful 7 | . 4 3 Failed 5 | . . 5 Catastrophic 1 | . . 1 Database Lockouts . | . . . Manual . | . . . Terminals 7 | . 2 5 Fabricators . | . . . Repair Stations . | . . . Recycling Units 2 | . 2 . Scanalyzers 3 | . . 3 Garrison Access . | . . . Terminal Hacks 2 | . 2 . Alert Level 1 | . 1 . Locate Traps 1 | . 1 . Fabricator Hacks . | . . . Repair Station Hacks . | . . . Recycling Unit Hacks 2 | . 2 . Report Inventory 2 | . 2 . Scanalyzer 3 | . . 3 Insert Component 1 | . . 1 Analyze 2 | . . 2 Garrison Access Hacks . | . . . Unauthorized Hacks . | . . . Terminals . | . . . Fabricators . | . . . Repair Stations . | . . . Recycling Units . | . . . Scanalyzers . | . . . Garrison Access . | . . . Data Cores Recovered 1 | . 1 . Used . | . . . Hacking Detections 3 | . 1 2 Full Trace Events 2 | . . 2 Feedback Events . | . . . Feedback Blocked . | . . . Robot Schematics Acquired . | . . . Robots Built . | . . . Authchips . | . . . Time . | . . . Total Robot Build Rating . | . . . Part Schematics Acquired 1 | . . 1 Parts Built . | . . . Authchips . | . . . Time . | . . . Total Part Build Rating . | . . . Parts Repaired . | . . . Time . | . . . Parts Recycled . | . . . Recycled Matter . | . . . Retrieved Matter . | . . . Retrieved Components . | . . . Parts Scanalyzed 1 | . . 1 Part Schematics Acquired 1 | . . 1 Parts Damaged . | . . . Bothacking | -11 -10 -9 ------------ Run | Scr Mat Mat Used RIF Installer . | . . . Robots Hacked . | . . . Non-combat . | . . . Combat . | . . . Robot Hacks Applied . | . . . Relay Couplers Released . | . . . Fabnet Peak Effective % . | . . . Robots Rewired . | . . . Allies Hacked . | . . . Hacks Repelled . | . . . Allies | -11 -10 -9 -------- Run | Scr Mat Mat Total Allies . | . . . Largest Group . | . . . Highest-Rated Group . | . . . Highest-Rated Ally . | . . . Total Orders . | . . . Ally Attacks . | . . . Total Damage . | . . . Kills . | . . . Allies Corrupted . | . . . Allies Melted . | . . . Intel | -11 -10 -9 ------- Run | Scr Mat Mat Robot Analysis Total . | . . . Derelict Logs Recovered . | . . . Drone Launches . | . . . Drone Recoveries . | . . . Exploration | -11 -10 -9 ------------- Run | Scr Mat Mat Turns Passed 1684 | 92 1258 334 Spaces Moved 1011 | 84 685 242 Core 37 | 31 . 6 Treads . | . . . Legs 738 | 53 685 . Wheels . | . . . Hover 236 | . . 236 Flight . | . . . Fastest Speed 50 | 50 120 108 Average Speed 145 | 94 159 124 Slowest Speed 500 | 120 190 500 Overloaded Moves . | . . . Propulsion Burnouts . | . . . Robots Hopped . | . . . Cave-ins Triggered . | . . . Exploration Rate (%) 39 | 6 94 19 Regions Visited 2 Branch Regions . Pre-discovered Areas . | . . . Known Exits Taken . | . . . Unknown Exits Taken 2 | 1 1 . Scrap Searched . | . . . Spaces Dug . | . . . Terrain Destroyed 179 | . 94 85 Melee . | . . . Projectile . | . . . AOE 179 | . 94 85 Terrain Rammed . | . . . Walls Destroyed . | . . . Machines Disabled . | . . . Actions | -11 -10 -9 --------- Run | Scr Mat Mat Total 1131 | 95 776 260 Wait 8 | . 7 1 Move 1009 | 83 684 242 Hop . | . . . Pick Up 31 | 6 23 2 Fast Attach 2 | . 2 . Attach 11 | 5 4 2 Detach 1 | . 1 . Swap 13 | . 9 4 Drop 7 | . 7 . Fire 47 | 1 39 7 Melee . | . . . Ram 2 | . . 2 Kick . | . . . Crush . | . . . Escape Stasis . | . . . Rewire . | . . . Trap . | . . . Miscellaneous . | . . . Route ------- -11/Scrapyard -10/Materials (discovered 3 exits: *Mat x2 / [*Min]) -9/Materials (discovered 1 exit: [*Sto]) History --------- Turn | Location | Event 2 | -11/Scrapyard | Met Revision 17 73 | -11/Scrapyard | Discovered new exit (range 8) 93 | -11/Scrapyard | Entered Materials 284 | -10/Materials | Core integrity fell below 50% 336 | -10/Materials | Build established: Mutant 854 | -10/Materials | Discovered new exit (range 5) 1077 | -10/Materials | Discovered new exit (range 16) 1247 | -10/Materials | Discovered new exit (range 16) 1351 | -10/Materials | Entered another Materials area 1351 | -9/Materials | Evolved 2 slots: Propulsion x2 1417 | -9/Materials | Discovered new exit (range 10) 1664 | -9/Materials | Core integrity fell below 50% 1680 | -9/Materials | Core integrity fell below 20% 1685 | -9/Materials | Destroyed by Y-45 Defender with Heavy Assault Rifle Last Messages --------------- 01625_ The unstable cave ceiling collapses. 01627_ U-05 Engineer lays Concrete. 01628_ U-05 Engineer builds a Wall. 01630_ U-05 Engineer lays Concrete. 01632_ U-05 Engineer builds a Wall. 01633_ U-05 Engineer lays Concrete. 01634_ U-05 Engineer builds a Door. 01634_ U-05 Engineer lays Concrete. 01637_ U-05 Engineer builds a Door. 01638_ U-05 Engineer builds a Wall. 01639_ U-05 Engineer lays Concrete. 01641_ Imp. Hover Unit destroyed. 01641_ U-05 Engineer builds a Wall. 01641_ U-05 Engineer lays Concrete. 01644_ Critical hit (Burn: +37). 01644_ U-05 Engineer lays Concrete. 01660_ Rocket Launcher destroyed. 01660_ Imp. Hover Unit destroyed. 01675_ Hvy. Ion Engine destroyed. 01675_ Connecting with Terminal... Map ----- +----------------------------------------------------+ | ????????????????????????????? #?# | | ?????????????????????????????? #?# | | ???????????????????????????????" #?# | | ??????????????????????????????"""" #?# | | ??????????????????????? """"" #?# | | ??????????????????????# " #######+ | | ??????????????????????# | | ??????????????????????# | | ??????????????????????# | | ??????????????????????? # ######### #####+## | | ???????????????????????# #?# ## # " | | ???????????????????????# #?# """ # !## " | | ???????????????????????# w #?# """## *## | | ???????????????????????# #?# """## ## ! | | ???????????????????????# #?# ! ## ## !! | | ???????????????????????# ### ## ## | | ???????????????????????# ######+### # | | ???????????????????????# # | | ???????????????????????+ ####### | | ???????????????????????# #????? | | ???????????????????????#w ## #/### #????? | | ???????????????????????# YY#### #######???? | | ???????????????????????# #??# """ #?????????? | | ??????????? ############ #??# """ #?????????### | | ?????????? #### """ #???????????? | | ?????????? k @ + +???????????? | | ?????????? #### * #???????????? | | ???????????# ##########Y############???????????? | | ??????????????????????# #????????????? | | ??????????????????????# "T" #????????????? | | ??????????????????????# !!/ """ #????????????? | | ??????????????????????# !!/ """??????????????? | | ??????????????????????# ] !/ """??????????????? | | ??????????????????????# ??????????????? | | ??????????????????????######### ####?????????????? | | ???????????????????????????????##????????????????? | | ?????????????????????????????????????????????????? | | ?????????????????????????????????????????????????? | | ?????????????????????????????????????????????????? | | ?????????????????????????????????????????????????? | | ?????????????????????????????????????????????????? | | ?????????????????????????????????????????????????? | | ?????????????????????????????????????????????????? | | ?????????????????????????????????????????????????? | | ?????????????????????????????????????????????????? | | ?????????????????????????????????????????????????? | | ?????????????????????????????????????????????????? | | ?????????????????????????????????????????????????? | | ?????????????????????????????????????????????????? | | ?????????????????????????????????????????????????? | +----------------------------------------------------+ Best States ------------- Heat Dissipation 35 Energy Generation 14 Energy Capacity 280 Matter Stores 300 Matter Capacity 300 Sight Range 16 Terrain Scan Density 10 Propulsion Shielding 33 Evasion (%) 55 Item Schematics ----------------- Hvy. Ion Engine | -9/Materials | Scanalyzed Robot Schematics ------------------ None Fabricated ------------ Nothing Alien Tech Used ----------------- None Achievements -------------- Let's See Who's Tougher One Hack Too Far Oops Safety First Challenges ------------ None Game ------ Seed ThrusterProtonReactor Manual? 0 Play Time 00:20:15 Cumulative 2.0 hours Start 2022.12.10 @ 10:12:54 End 2022.12.10 @ 10:31:39 Sessions 1 Manual Loads 0 Difficulty Rogue Special Mode None Game No. 3 Rogue 3 Adventurer 0 Explorer 0 Win Type - Total 0 Types 0/0/0/0/0/0/0/0/0 Lore% 0 Gallery% 3 Achievement% 4 Wizard Run 0 Options --------- ASCII 0 Keyboard 0 Movement Arrows Keybinds 0 Fullscreen 1 Font 18/Terminus Map View 76x50 Tactical HUD 1 Map Filters NONE Filters NONE Steam 1 RUN: 040340be-6754-45e0-9878-b7f37f643a8b